fUSD/lending_fUSD_20260608
["ID","MTS","AMOUNT","RATE_DAILY","PERIOD"]
[424415680,1780858254000,-531.81561148,0.0002468,30]
[424415684,1780858254000,-500.0,0.00024706,2]
[424415683,1780858254000,-2000.0,0.00024706,2]
[424415685,1780858254000,-531.81561148,0.00024747,30]
[424415673,1780858254000,-166.244575,0.00024658,2]
[424415713,1780858254000,-1814.59150935,0.00025,2]
[424415768,1780858254000,-325.38082069,0.00025397,2]
[424415718,1780858254000,-7247.30104457,0.00025,2]
[424415751,1780858254000,-575.32,0.00025309,2]
[424415750,1780858254000,-573.09,0.00025309,2]
[424415749,1780858254000,-575.32,0.00025309,2]
[424415748,1780858254000,-185.06,0.00025309,2]
[424415754,1780858254000,-575.37,0.0002531,2]
[424415764,1780858254000,-151.0,0.00025315,2]
[424415761,1780858254000,-151.0,0.00025315,2]
[424415755,1780858254000,-644.0,0.0002531,2]
[424415753,1780858254000,-482.18,0.0002531,2]
[424415756,1780858254000,-151.0,0.00025314,2]
[424415757,1780858254000,-151.0,0.00025314,2]
[424415758,1780858254000,-151.0,0.00025314,2]
[424415760,1780858254000,-151.0,0.00025315,2]
[424415763,1780858254000,-151.0,0.00025315,2]
[424415759,1780858254000,-151.0,0.00025315,2]
[424415762,1780858254000,-151.0,0.00025315,2]
[424415767,1780858254000,-500.0,0.00025367,2]
[424415765,1780858254000,-151.0,0.00025317,2]
[424415773,1780858254000,-242.15909246,0.00025434,2]
[424415766,1780858254000,-152.0,0.00025363,14]
[424415770,1780858254000,-610.322667,0.00025397,2]
[424415769,1780858254000,-578.36122814,0.00025397,2]
[424415772,1780858254000,-311.96328573,0.00025434,2]
[424415771,1780858254000,-312.51926486,0.00025417,2]
[424415714,1780858254000,-2000.0,0.00025,2]
[424415745,1780858254000,-247.04,0.00025309,2]
[424415752,1780858254000,-575.32,0.00025309,2]
[424415774,1780858254000,-151.0,0.00025436,2]
[424415742,1780858254000,-573.09,0.00025309,2]
[424415746,1780858254000,-575.32,0.00025309,2]
[424415721,1780858254000,-162.0,0.00025,7]
[424415722,1780858254000,-255.31,0.00025,2]
[424415724,1780858254000,-255.31,0.00025,2]
[424415723,1780858254000,-255.31,0.00025,2]
[424415719,1780858254000,-2237.0322805,0.00025,2]
[424415727,1780858254000,-215.83393831,0.00025,7]
[424415728,1780858254000,-159.58,0.00025,2]
[424415725,1780858254000,-255.31,0.00025,2]
[424415726,1780858254000,-255.32,0.00025,2]
[424415730,1780858254000,-163.38,0.00025,2]
[424415731,1780858254000,-152.0,0.00025007,13]
[424415729,1780858254000,-159.58,0.00025,2]
[424415720,1780858254000,-170.10161148,0.00025,2]
[424415733,1780858254000,-2388.85,0.00025052,7]
[424415744,1780858254000,-575.32,0.00025309,2]
[424415743,1780858254000,-572.86,0.00025309,2]
[424415747,1780858254000,-573.09,0.00025309,2]
[424415741,1780858254000,-571.28,0.00025309,2]
[424415740,1780858254000,-531.81561148,0.00025291,60]
[424415737,1780858254000,-531.81561148,0.00025223,60]
[424415736,1780858254000,-250.0,0.00025206,2]
[424415738,1780858254000,-186.01897328,0.00025276,60]
[424415735,1780858254000,-531.81561148,0.00025155,60]
[424415732,1780858254000,-531.81561148,0.00025019,30]
[424415734,1780858254000,-531.81561148,0.00025087,30]
[424415739,1780858254000,-176.12609513,0.00025276,60]
[424415815,1780858255000,-250.0,0.00026028,7]
[424415816,1780858255000,-151.0,0.00026071,7]
[424415813,1780858255000,-250.0,0.00026027,7]
[424415811,1780858255000,-250.0,0.00026027,7]
[424415805,1780858255000,-550.0,0.00026,2]
[424415808,1780858255000,-2000.0,0.00026,7]
[424415804,1780858255000,-220.12838681,0.00026,2]
[424415807,1780858255000,-215.83393831,0.00026,3]
[424415806,1780858255000,-1752.63,0.00026,7]
[424415803,1780858255000,-260.4103811,0.00025986,2]
[424415809,1780858255000,-248.57821174,0.00026007,60]
[424415814,1780858255000,-500.0,0.00026028,2]
[424415822,1780858255000,-185.06,0.00026131,2]
[424415817,1780858255000,-152.0,0.00026075,16]
[424415818,1780858255000,-250.0,0.00026085,7]
[424415821,1780858255000,-185.06,0.00026131,2]
[424415819,1780858255000,-573.09,0.00026131,2]
[424415824,1780858255000,-396.09,0.00026131,2]
[424415825,1780858255000,-644.0,0.00026131,2]
[424415823,1780858255000,-575.32,0.00026131,2]
[424415832,1780858255000,-575.32,0.00026131,2]
[424415829,1780858255000,-482.18,0.00026131,2]
[424415826,1780858255000,-396.09,0.00026131,2]
[424415801,1780858255000,-500.0,0.00025986,2]
[424415827,1780858255000,-482.18,0.00026131,2]
[424415812,1780858255000,-250.0,0.00026027,7]
[424415802,1780858255000,-200.0,0.00025986,2]
[424415788,1780858255000,-176.12609513,0.00025563,60]
[424415799,1780858255000,-500.0,0.00025844,2]
[424415830,1780858255000,-575.32,0.00026131,2]
[424415775,1780858255000,-500.0,0.00025438,2]
[424415787,1780858255000,-186.01897328,0.00025563,60]
[424415777,1780858255000,-251.11897888,0.00025438,2]
[424415776,1780858255000,-200.0,0.00025438,2]
[424415778,1780858255000,-2991.49051684,0.00025438,2]
[424415779,1780858255000,-2054.15682156,0.00025438,2]
[424415780,1780858255000,-151.0,0.00025438,2]
[424415783,1780858255000,-244.12,0.000255,3]
[424415781,1780858255000,-500.0,0.00025438,2]
[424415782,1780858255000,-573.09,0.00025445,2]
[424415784,1780858255000,-168.3,0.00025548,2]
[424415786,1780858255000,-1200.0,0.00025548,7]
[424415785,1780858255000,-600.0,0.00025548,7]
[424415791,1780858255000,-890.0,0.00025684,2]
[424415793,1780858255000,-496.0,0.00025695,2]
[424415794,1780858255000,-298.5,0.00025699,2]
[424415796,1780858255000,-200.0,0.00025721,2]
[424415790,1780858255000,-588.9,0.00025644,2]
[424415789,1780858255000,-5530.0,0.000256,3]
[424415798,1780858255000,-207.2,0.00025836,2]
[424415795,1780858255000,-152.0,0.00025719,15]
[424415792,1780858255000,-685.0,0.00025695,2]
[424415797,1780858255000,-250.0,0.00025754,2]
[424415800,1780858255000,-285.0,0.00025928,2]
[424415810,1780858255000,-250.0,0.00026026,7]
[424415828,1780858255000,-396.09,0.00026131,2]
[424415820,1780858255000,-185.06,0.00026131,2]
[424415831,1780858255000,-185.06,0.00026131,2]
[424415862,1780858255000,-693.21,0.00026457,2]
[424415864,1780858255000,-500.0,0.00026534,2]
[424415866,1780858255000,-270.0455652,0.00026534,2]
[424415865,1780858255000,-200.0,0.00026534,2]
[424415867,1780858255000,-172.0,0.00026581,7]
[424415868,1780858255000,-600.0,0.00026644,7]
[424415869,1780858255000,-1200.0,0.00026644,7]
[424415873,1780858255000,-500.0,0.00026798,2]
[424415871,1780858255000,-350.0,0.00026753,8]
[424415872,1780858255000,-152.0,0.00026788,18]
[424415874,1780858255000,-170.0066442,0.00026803,2]
[424415870,1780858255000,-2388.85,0.00026736,7]
[424415876,1780858255000,-185.06,0.00026953,2]
[424415877,1780858255000,-575.32,0.00026953,2]
[424415878,1780858255000,-644.0,0.00026953,2]
[424415875,1780858255000,-250.0,0.0002685,2]
[424415879,1780858255000,-396.09,0.00026953,2]
[424415883,1780858255000,-644.0,0.00026953,2]
[424415887,1780858255000,-644.0,0.00026953,2]
[424415881,1780858255000,-482.2,0.00026953,2]
[424415880,1780858255000,-482.18,0.00026953,2]
[424415886,1780858255000,-644.0,0.00026953,2]
[424415882,1780858255000,-575.32,0.00026953,2]
[424415884,1780858255000,-575.32,0.00026953,2]
[424415885,1780858255000,-185.06,0.00026953,2]
[424415859,1780858255000,-610.322667,0.00026397,2]
[424415858,1780858255000,-578.36122814,0.00026397,2]
[424415833,1780858255000,-482.18,0.00026131,2]
[424415860,1780858255000,-356.9450062,0.00026397,2]
[424415863,1780858255000,-200.0,0.00026492,2]
[424415834,1780858255000,-185.06,0.00026131,2]
[424415836,1780858255000,-644.0,0.00026132,2]
[424415835,1780858255000,-577.53,0.00026132,2]
[424415838,1780858255000,-396.09,0.00026132,2]
[424415837,1780858255000,-579.58,0.00026132,2]
[424415840,1780858255000,-372.17,0.00026137,2]
[424415839,1780858255000,-185.06,0.00026136,2]
[424415845,1780858255000,-194.64,0.00026267,2]
[424415888,1780858255000,-644.0,0.00026953,2]
[424415841,1780858255000,-151.0,0.00026144,2]
[424415843,1780858255000,-644.0,0.00026245,2]
[424415842,1780858255000,-5530.0,0.000262,5]
[424415844,1780858255000,-197.75,0.00026258,2]
[424415846,1780858255000,-573.09,0.00026267,2]
[424415848,1780858255000,-28977.2593399,0.00026286,2]
[424415857,1780858255000,-325.38082069,0.00026397,2]
[424415855,1780858255000,-329.27293746,0.00026397,2]
[424415856,1780858255000,-284.98184678,0.00026397,2]
[424415852,1780858255000,-250.0,0.00026302,2]
[424415853,1780858255000,-500.0,0.00026321,2]
[424415854,1780858255000,-160.0,0.00026392,3]
[424415861,1780858255000,-152.0,0.00026432,17]
[424415849,1780858255000,-844.6099574,0.00026286,2]
[424415850,1780858255000,-1175.4,0.00026296,2]
[424415847,1780858255000,-1423.3149094,0.00026286,2]
[424415851,1780858255000,-160.0,0.00026301,3]
[424415923,1780858256000,-200.0,0.00027263,2]
[424415927,1780858256000,-1752.63,0.000273,7]
[424415928,1780858256000,-500.0,0.00027361,14]
[424415924,1780858256000,-500.0,0.00027275,2]
[424415921,1780858256000,-707.0,0.00027137,2]
[424415918,1780858256000,-396.09,0.00027088,2]
[424415922,1780858256000,-152.0,0.00027144,19]
[424415925,1780858256000,-604.15278706,0.000273,30]
[424415919,1780858256000,-394.0,0.00027091,7]
[424415930,1780858256000,-400.0,0.0002737,2]
[424415926,1780858256000,-604.15278704,0.000273,30]
[424415929,1780858256000,-400.0,0.0002737,2]
[424415951,1780858256000,-167.485429,0.00027397,2]
[424415932,1780858256000,-615.04,0.00027397,2]
[424415934,1780858256000,-680.00538665,0.00027397,7]
[424415933,1780858256000,-267.57770335,0.00027397,7]
[424415935,1780858256000,-204.10442638,0.00027397,7]
[424415938,1780858256000,-406.881778,0.00027397,7]
[424415940,1780858256000,-550.60617331,0.00027397,2]
[424415931,1780858256000,-4526.11308084,0.0002739,7]
[424415939,1780858256000,-151.0,0.00027397,2]
[424415936,1780858256000,-216.92054713,0.00027397,7]
[424415942,1780858256000,-1500.0,0.00027397,2]
[424415952,1780858256000,-167.485429,0.00027397,2]
[424415920,1780858256000,-5200.30331593,0.00027111,2]
[424415937,1780858256000,-385.57415209,0.00027397,7]
[424415917,1780858256000,-482.02,0.00027088,2]
[424415903,1780858256000,-573.09,0.00026959,2]
[424415911,1780858256000,-573.09,0.00027067,2]
[424415953,1780858256000,-167.485429,0.00027397,2]
[424415891,1780858256000,-481.02,0.00026953,2]
[424415889,1780858256000,-482.18,0.00026953,2]
[424415890,1780858256000,-321.46,0.00026953,2]
[424415892,1780858256000,-644.0,0.00026953,2]
[424415894,1780858256000,-185.06,0.00026953,2]
[424415896,1780858256000,-185.06,0.00026958,2]
[424415895,1780858256000,-396.09,0.00026953,2]
[424415897,1780858256000,-573.09,0.00026958,2]
[424415898,1780858256000,-575.32,0.00026958,2]
[424415900,1780858256000,-184.0,0.00026958,2]
[424415901,1780858256000,-395.96,0.00026958,2]
[424415914,1780858256000,-200.0,0.00027082,2]
[424415899,1780858256000,-482.18,0.00026958,2]
[424415893,1780858256000,-575.32,0.00026953,2]
[424415905,1780858256000,-930.92336407,0.00026988,2]
[424415915,1780858256000,-280.03725111,0.00027082,2]
[424415904,1780858256000,-573.09,0.00026959,2]
[424415916,1780858256000,-573.03,0.00027088,2]
[424415906,1780858256000,-235.0,0.00027,30]
[424415907,1780858256000,-250.0,0.00027,2]
[424415908,1780858256000,-530.0,0.00027,2]
[424415909,1780858256000,-202.486538,0.00027,2]
[424415910,1780858256000,-151.0,0.00027007,60]
[424415912,1780858256000,-500.0,0.00027068,2]
[424415913,1780858256000,-500.0,0.00027082,2]
[424415902,1780858256000,-575.32,0.00026958,2]
[424415945,1780858256000,-514.95,0.00027397,2]
[424415950,1780858256000,-528.84,0.00027397,2]
[424415943,1780858256000,-164.05381436,0.00027397,7]
[424415972,1780858256000,-151.0,0.00027397,2]
[424415980,1780858256000,-1812.427252,0.00027397,2]
[424415981,1780858256000,-1812.427252,0.00027397,2]
[424415979,1780858256000,-1812.427252,0.00027397,2]
[424415982,1780858256000,-1812.427252,0.00027397,2]
[424415984,1780858256000,-1812.427252,0.00027397,2]
[424415985,1780858256000,-1812.427252,0.00027397,2]
[424415986,1780858256000,-1812.427252,0.00027397,2]
[424415987,1780858256000,-1812.427252,0.00027397,2]
[424415995,1780858256000,-1124.590247,0.00027397,2]
[424415996,1780858256000,-1124.590247,0.00027397,2]
[424415988,1780858256000,-1812.427252,0.00027397,2]
[424415992,1780858256000,-1124.590247,0.00027397,2]
[424415993,1780858256000,-1124.590247,0.00027397,2]
[424415994,1780858256000,-1124.590247,0.00027397,2]
[424415990,1780858256000,-1124.590247,0.00027397,2]
[424415991,1780858256000,-1124.590247,0.00027397,2]
[424415998,1780858256000,-1124.590247,0.00027397,2]
[424415997,1780858256000,-1124.590247,0.00027397,2]
[424416000,1780858256000,-655.430247,0.00027397,2]
[424416001,1780858256000,-655.430247,0.00027397,2]
[424416003,1780858256000,-655.430247,0.00027397,2]
[424415999,1780858256000,-1124.590247,0.00027397,2]
[424416002,1780858256000,-1124.590247,0.00027397,2]
[424416004,1780858256000,-1124.590247,0.00027397,2]
[424415941,1780858256000,-2494.60655504,0.00027397,2]
[424416005,1780858256000,-655.430247,0.00027397,2]
[424415975,1780858256000,-1812.427252,0.00027397,2]
[424415976,1780858256000,-1812.427252,0.00027397,2]
[424415989,1780858256000,-1812.427252,0.00027397,2]
[424415974,1780858256000,-1812.427252,0.00027397,2]
[424415946,1780858256000,-220.09,0.00027397,31]
[424415944,1780858256000,-289.44574219,0.00027397,7]
[424415977,1780858256000,-1812.427252,0.00027397,2]
[424415947,1780858256000,-429.3917844,0.00027397,2]
[424415948,1780858256000,-165.49454062,0.00027397,2]
[424415949,1780858256000,-300.0,0.00027397,2]
[424415954,1780858256000,-167.485429,0.00027397,2]
[424415955,1780858256000,-167.485429,0.00027397,2]
[424415958,1780858256000,-167.485429,0.00027397,2]
[424415956,1780858256000,-167.485429,0.00027397,2]
[424415960,1780858256000,-167.485429,0.00027397,2]
[424415961,1780858256000,-167.485429,0.00027397,2]
[424415959,1780858256000,-167.485429,0.00027397,2]
[424415957,1780858256000,-167.485429,0.00027397,2]
[424415973,1780858256000,-151.0,0.00027397,2]
[424415978,1780858256000,-1812.427252,0.00027397,2]
[424415983,1780858256000,-1812.427252,0.00027397,2]
[424415963,1780858256000,-167.485429,0.00027397,2]
[424415967,1780858256000,-217.75,0.00027397,2]
[424415968,1780858256000,-151.0,0.00027397,2]
[424415970,1780858256000,-151.0,0.00027397,2]
[424415969,1780858256000,-249.840194,0.00027397,2]
[424415965,1780858256000,-167.485429,0.00027397,2]
[424415964,1780858256000,-167.485429,0.00027397,2]
[424415966,1780858256000,-167.485429,0.00027397,2]
[424415962,1780858256000,-167.485429,0.00027397,2]
[424415971,1780858256000,-151.0,0.00027397,2]
[424416049,1780858257000,-1902.015978,0.00027397,2]
[424416048,1780858257000,-1902.015978,0.00027397,2]
[424416050,1780858257000,-1902.015978,0.00027397,2]
[424416038,1780858257000,-1000.0,0.00027397,20]
[424416044,1780858257000,-1902.015978,0.00027397,2]
[424416046,1780858257000,-1902.015978,0.00027397,2]
[424416037,1780858257000,-1133.217836,0.00027397,2]
[424416043,1780858257000,-1902.015978,0.00027397,2]
[424416041,1780858257000,-1902.015978,0.00027397,2]
[424416045,1780858257000,-1902.015978,0.00027397,2]
[424416040,1780858257000,-1902.015978,0.00027397,2]
[424416051,1780858257000,-1902.015978,0.00027397,2]
[424416047,1780858257000,-1902.015978,0.00027397,2]
[424416052,1780858257000,-1902.015978,0.00027397,2]
[424416066,1780858257000,-500.0,0.000274,2]
[424416055,1780858257000,-197.64311892,0.00027397,30]
[424416053,1780858257000,-1902.015978,0.00027397,2]
[424416061,1780858257000,-500.0,0.000274,2]
[424416054,1780858257000,-1902.015978,0.00027397,2]
[424416062,1780858257000,-500.0,0.000274,2]
[424416056,1780858257000,-500.0,0.00027398,2]
[424416057,1780858257000,-250.0,0.00027398,2]
[424416059,1780858257000,-500.0,0.000274,2]
[424416058,1780858257000,-500.0,0.000274,2]
[424416063,1780858257000,-500.0,0.000274,2]
[424416065,1780858257000,-631.08,0.000274,2]
[424416064,1780858257000,-500.0,0.000274,2]
[424416042,1780858257000,-1902.015978,0.00027397,2]
[424416060,1780858257000,-500.0,0.000274,2]
[424416039,1780858257000,-1902.015978,0.00027397,2]
[424416006,1780858257000,-1124.590247,0.00027397,2]
[424416034,1780858257000,-1133.217836,0.00027397,2]
[424416073,1780858257000,-500.0,0.000274,2]
[424416008,1780858257000,-655.430247,0.00027397,2]
[424416009,1780858257000,-1124.590247,0.00027397,2]
[424416007,1780858257000,-1124.590247,0.00027397,2]
[424416010,1780858257000,-655.430247,0.00027397,2]
[424416012,1780858257000,-655.430247,0.00027397,2]
[424416013,1780858257000,-655.430247,0.00027397,2]
[424416011,1780858257000,-1124.590247,0.00027397,2]
[424416014,1780858257000,-655.430247,0.00027397,2]
[424416017,1780858257000,-655.430247,0.00027397,2]
[424416023,1780858257000,-1133.217836,0.00027397,2]
[424416018,1780858257000,-655.430247,0.00027397,2]
[424416015,1780858257000,-655.430247,0.00027397,2]
[424416016,1780858257000,-655.430247,0.00027397,2]
[424416020,1780858257000,-655.430247,0.00027397,2]
[424416021,1780858257000,-655.430247,0.00027397,2]
[424416019,1780858257000,-655.430247,0.00027397,2]
[424416022,1780858257000,-1133.217836,0.00027397,2]
[424416025,1780858257000,-1133.217836,0.00027397,2]
[424416035,1780858257000,-1133.217836,0.00027397,2]
[424416024,1780858257000,-1133.217836,0.00027397,2]
[424416036,1780858257000,-1133.217836,0.00027397,2]
[424416027,1780858257000,-1133.217836,0.00027397,2]
[424416031,1780858257000,-1133.217836,0.00027397,2]
[424416026,1780858257000,-1133.217836,0.00027397,2]
[424416028,1780858257000,-1133.217836,0.00027397,2]
[424416029,1780858257000,-1133.217836,0.00027397,2]
[424416033,1780858257000,-1133.217836,0.00027397,2]
[424416030,1780858257000,-1133.217836,0.00027397,2]
[424416032,1780858257000,-1133.217836,0.00027397,2]
[424416070,1780858257000,-500.0,0.000274,2]
[424416130,1780858257000,-159.75380246,0.00027507,2]
[424416067,1780858257000,-500.0,0.000274,2]
[424416113,1780858257000,-1133.217836,0.000275,7]
[424416103,1780858257000,-545.183073,0.000275,7]
[424416108,1780858257000,-290.076886,0.000275,7]
[424416109,1780858257000,-1133.217836,0.000275,7]
[424416107,1780858257000,-545.183073,0.000275,7]
[424416106,1780858257000,-290.076892,0.000275,7]
[424416111,1780858257000,-151.0,0.000275,7]
[424416110,1780858257000,-545.183072,0.000275,7]
[424416104,1780858257000,-290.076892,0.000275,7]
[424416105,1780858257000,-545.183073,0.000275,7]
[424416115,1780858257000,-2200.74357,0.000275,7]
[424416116,1780858257000,-157.050854,0.000275,7]
[424416114,1780858257000,-1133.21784,0.000275,7]
[424416120,1780858257000,-157.050854,0.000275,7]
[424416122,1780858257000,-157.050854,0.000275,7]
[424416124,1780858257000,-313.86713,0.000275,7]
[424416123,1780858257000,-313.86713,0.000275,7]
[424416121,1780858257000,-2200.74356356,0.000275,7]
[424416117,1780858257000,-2200.74357,0.000275,7]
[424416118,1780858257000,-157.050854,0.000275,7]
[424416119,1780858257000,-2200.74357,0.000275,7]
[424416125,1780858257000,-313.86713,0.000275,7]
[424416126,1780858257000,-313.867126,0.000275,7]
[424416127,1780858257000,-151.0,0.000275,7]
[424416072,1780858257000,-500.0,0.000274,2]
[424416133,1780858257000,-500.0,0.00027509,2]
[424416129,1780858257000,-181.60794705,0.00027507,2]
[424416131,1780858257000,-173.90400532,0.00027507,2]
[424416132,1780858257000,-2000.0,0.00027509,2]
[424416112,1780858257000,-1133.217836,0.000275,7]
[424416101,1780858257000,-3828.0,0.000275,7]
[424416128,1780858257000,-159.61396052,0.00027507,2]
[424416100,1780858257000,-500.0,0.000275,7]
[424416102,1780858257000,-290.076892,0.000275,7]
[424416069,1780858257000,-500.0,0.000274,2]
[424416068,1780858257000,-500.0,0.000274,2]
[424416071,1780858257000,-500.0,0.000274,2]
[424416075,1780858257000,-500.0,0.000274,2]
[424416078,1780858257000,-999.39407274,0.000274,7]
[424416079,1780858257000,-1902.015978,0.000274,7]
[424416077,1780858257000,-696.61,0.000274,2]
[424416081,1780858257000,-1902.015978,0.000274,7]
[424416080,1780858257000,-1902.015978,0.000274,7]
[424416083,1780858257000,-819.476695,0.000274,7]
[424416084,1780858257000,-166.244575,0.000274,7]
[424416076,1780858257000,-500.0,0.000274,2]
[424416082,1780858257000,-1902.015973,0.000274,7]
[424416074,1780858257000,-500.0,0.000274,2]
[424416087,1780858257000,-819.476695,0.000274,7]
[424416085,1780858257000,-819.476695,0.000274,7]
[424416099,1780858257000,-204.78494136,0.000275,2]
[424416093,1780858257000,-241.322376,0.000274,7]
[424416096,1780858257000,-8813.77996503,0.0002745,2]
[424416095,1780858257000,-2322.0,0.00027401,3]
[424416098,1780858257000,-152.0,0.000275,20]
[424416092,1780858257000,-241.322376,0.000274,7]
[424416094,1780858257000,-241.322367,0.000274,7]
[424416086,1780858257000,-166.244575,0.000274,7]
[424416091,1780858257000,-241.322376,0.000274,7]
[424416089,1780858257000,-819.476686,0.000274,7]
[424416097,1780858257000,-2017.0,0.00027475,7]
[424416088,1780858257000,-166.244575,0.000274,7]
[424416090,1780858257000,-166.244576,0.000274,7]
[424416159,1780858258000,-173.31762897,0.00027618,2]
[424416163,1780858258000,-212.68598313,0.00027618,2]
[424416166,1780858258000,-615.03,0.00027626,2]
[424416171,1780858258000,-151.0,0.00027626,7]
[424416164,1780858258000,-202.08187641,0.00027618,2]
[424416172,1780858258000,-1812.427252,0.00027626,7]
[424416170,1780858258000,-1812.427252,0.00027626,7]
[424416168,1780858258000,-288.517656,0.00027626,7]
[424416169,1780858258000,-1812.427252,0.00027626,7]
[424416165,1780858258000,-185.46515909,0.00027618,2]
[424416173,1780858258000,-1812.427245,0.00027626,7]
[424416184,1780858258000,-290.3986294,0.0002763,2]
[424416175,1780858258000,-1124.590247,0.00027626,7]
[424416185,1780858258000,-707.0,0.00027671,2]
[424416186,1780858258000,-198.47,0.00027671,13]
[424416181,1780858258000,-655.430249,0.00027626,7]
[424416177,1780858258000,-655.430247,0.00027626,7]
[424416174,1780858258000,-1124.590247,0.00027626,7]
[424416180,1780858258000,-655.430247,0.00027626,7]
[424416179,1780858258000,-655.430247,0.00027626,7]
[424416178,1780858258000,-1124.590256,0.00027626,7]
[424416182,1780858258000,-500.0,0.0002763,2]
[424416162,1780858258000,-172.17879253,0.00027618,2]
[424416167,1780858258000,-151.0,0.00027626,7]
[424416161,1780858258000,-151.70502568,0.00027618,2]
[424416149,1780858258000,-382.0,0.00027538,2]
[424416160,1780858258000,-155.22605056,0.00027618,2]
[424416176,1780858258000,-1124.590247,0.00027626,7]
[424416134,1780858258000,-153.01400539,0.0002751,2]
[424416136,1780858258000,-195.97942998,0.0002751,2]
[424416135,1780858258000,-163.74596991,0.0002751,2]
[424416137,1780858258000,-162.23501609,0.00027512,2]
[424416138,1780858258000,-187.01638004,0.00027512,2]
[424416146,1780858258000,-3113.43,0.00027521,7]
[424416144,1780858258000,-169.77580912,0.00027512,2]
[424416148,1780858258000,-3554.0,0.00027538,2]
[424416145,1780858258000,-180.61815252,0.00027512,2]
[424416139,1780858258000,-166.31522461,0.00027512,2]
[424416158,1780858258000,-170.67702419,0.00027618,2]
[424416140,1780858258000,-161.07568389,0.00027512,2]
[424416142,1780858258000,-157.49912038,0.00027512,2]
[424416147,1780858258000,-1358.0,0.00027538,2]
[424416141,1780858258000,-165.30884924,0.00027512,2]
[424416143,1780858258000,-157.52853465,0.00027512,2]
[424416151,1780858258000,-1227.0,0.00027538,2]
[424416153,1780858258000,-419.0,0.00027538,2]
[424416154,1780858258000,-164.32613778,0.00027611,2]
[424416157,1780858258000,-165.61439968,0.00027618,2]
[424416155,1780858258000,-278.89148441,0.00027616,30]
[424416156,1780858258000,-156.4309184,0.00027618,2]
[424416152,1780858258000,-6073.0,0.00027538,2]
[424416150,1780858258000,-1274.0,0.00027538,2]
[424416183,1780858258000,-200.0,0.0002763,2]
[424416241,1780858258000,-301.14337869,0.00028178,2]
[424416193,1780858258000,-1200.0,0.0002774,60]
[424416217,1780858258000,-186.0,0.00027821,2]
[424416216,1780858258000,-200.0,0.00027821,2]
[424416215,1780858258000,-200.0,0.00027821,2]
[424416223,1780858258000,-201.0,0.00028,30]
[424416213,1780858258000,-482.18,0.00027781,2]
[424416219,1780858258000,-152.0,0.00027856,21]
[424416214,1780858258000,-572.54,0.00027781,2]
[424416224,1780858258000,-544.32811394,0.00028,2]
[424416225,1780858258000,-351.7438885,0.00028,30]
[424416227,1780858258000,-325.0,0.00028,2]
[424416236,1780858258000,-1000.0,0.00028094,7]
[424416218,1780858258000,-615.03,0.00027854,2]
[424416228,1780858258000,-600.0,0.00028,2]
[424416231,1780858258000,-2000.0,0.00028,7]
[424416226,1780858258000,-160.0,0.00028,2]
[424416234,1780858258000,-2364.0,0.00028041,3]
[424416233,1780858258000,-200.0,0.00028034,2]
[424416235,1780858258000,-615.03,0.00028082,2]
[424416232,1780858258000,-151.0,0.00028007,60]
[424416238,1780858258000,-2322.0,0.00028162,3]
[424416237,1780858258000,-1000.0,0.00028118,7]
[424416239,1780858258000,-500.0,0.00028178,2]